bitfinex/quotes_SOLUSD_20250903
["timestamp","ask_amount","ask_price","bid_price","bid_amount"]
[1756910678466,11.66772724,212.7,212.69,40.36]
[1756910679067,12.10772724,212.7,212.61,0.66]
[1756910679268,12.10772724,212.7,212.58,0.03]
[1756910679269,26.0,212.69,212.62,43.7521639]
[1756910679580,0.44,212.68,212.63,3.4921639]
[1756910679780,0.44,212.67,212.64,3.4921639]
[1756910679986,0.44,212.67,212.65,3.4921639]
[1756910680288,11.66772724,212.66,212.63,40.26]
[1756910680481,26.0,212.69,212.64,3.49322955]
[1756910680670,26.0,212.69,212.65,3.49322955]
[1756910680989,26.0,212.7,212.63,40.26]
[1756910681192,0.06,212.74,212.66,0.66]
[1756910681378,0.44,212.73,212.67,40.3]
[1756910681687,11.66772724,212.68,212.67,40.3]
[1756910682981,16.36964876,212.68,212.65,40.36]
[1756910683181,11.66772724,212.66,212.65,40.36]
[1756910683480,11.66772724,212.66,212.58,0.03]
[1756910683671,11.66772724,212.59,212.58,45.07411139]
[1756910683870,11.66772724,212.59,212.58,49.27847155]
[1756910685677,11.66772724,212.6,212.58,49.27847155]
[1756910685892,30.70227391,212.67,212.59,4.20436016]
[1756910686094,11.66772724,212.6,212.59,80.41]
[1756910686286,11.66772724,212.6,212.59,83.90395379]
[1756910686470,11.66772724,212.61,212.59,83.90395379]
[1756910686674,26.0,212.7,212.61,4.70344762]
[1756910686892,11.66772724,212.66,212.62,44.56395379]
[1756910687073,11.66772724,212.65,212.63,4.20395379]
[1756910687271,11.66772724,212.65,212.64,4.20395379]
[1756910687900,11.66772724,212.66,212.64,4.20395379]
[1756910688196,11.66772724,212.66,212.65,44.56395379]
[1756910688781,11.66772724,212.67,212.66,4.70234176]
[1756910688984,11.66772724,212.67,212.66,8.90629555]
[1756910689396,4.76077244,212.74,212.66,8.90629555]
[1756910689597,11.66772724,212.67,212.66,5.41234176]
[1756910689803,11.66772724,212.67,212.66,4.20321619]
[1756910690582,11.66772724,212.69,212.66,4.20321619]
[1756910690888,11.66772724,212.69,212.67,8.90533684]
[1756910691093,11.66772724,212.69,212.68,44.44321619]
[1756910691503,0.06,212.74,212.68,44.44321619]
[1756910691694,11.66772724,212.69,212.68,40.24]
[1756910692008,11.66772724,212.69,212.68,43.7320418]
[1756910692684,5.20058296,212.74,212.68,43.73260406]
[1756910692883,11.66772724,212.69,212.68,40.24]
[1756910693094,11.66772724,212.69,212.68,43.73241317]
[1756910693392,11.66772724,212.69,212.68,48.43431273]
[1756910694203,11.66772724,212.69,212.68,43.73241317]
[1756910694406,11.66772724,212.69,212.68,40.16]
[1756910694776,11.66772724,212.69,212.68,43.65191663]
[1756910694994,11.66772724,212.69,212.68,43.65213432]
[1756910695192,11.66772724,212.69,212.68,43.65199722]
[1756910695400,11.66772724,212.69,212.68,40.16]
[1756910696672,11.66772724,212.69,212.62,0.71]
[1756910697008,11.66772724,212.63,212.62,0.71]
[1756910697179,11.66772724,212.63,212.62,44.28445917]
[1756910697576,11.66772724,212.63,212.62,48.98768558]
[1756910697788,26.44,212.71,212.62,48.98768558]
[1756910697976,11.66772724,212.64,212.63,3.49445917]
[1756910698204,11.66772724,212.64,212.63,4.20445917]
[1756910698573,0.06,212.69,212.63,4.20445917]
[1756910698798,0.06,212.69,212.64,4.20445917]
[1756910698979,11.66772724,212.67,212.65,43.51445917]
[1756910699293,0.06,212.69,212.66,8.90680093]
[1756910699497,0.06,212.69,212.67,3.49445917]
[1756910699809,0.06,212.69,212.68,43.51445917]
[1756910700595,0.06,212.69,212.68,44.22445917]
[1756910701201,0.06,212.69,212.68,4.20445917]
[1756910701405,0.06,212.69,212.68,43.47445917]
[1756910702001,11.72772724,212.69,212.68,44.18445917]
[1756910702200,11.72772724,212.69,212.68,43.47445917]
[1756910702408,11.72772724,212.69,212.68,3.49445917]
[1756910702604,11.72772724,212.69,212.68,43.55445917]
[1756910702805,11.72772724,212.69,212.68,3.49445917]
[1756910703005,11.72772724,212.69,212.67,40.04]
[1756910703006,12.16772724,212.69,212.67,40.04]
[1756910703197,11.66772724,212.68,212.67,40.04]
[1756910703402,12.10772724,212.68,212.65,40.0]
[1756910703614,0.06,212.69,212.66,3.48682406]
[1756910703918,0.06,212.69,212.67,3.48682406]
[1756910704123,0.06,212.69,212.65,40.71]
[1756910704303,0.06,212.69,212.66,3.48810641]
[1756910704491,0.06,212.69,212.67,3.48810641]
[1756910704804,12.10772724,212.68,212.66,39.98]
[1756910705010,11.66772724,212.67,212.64,39.98]
[1756910705309,0.06,212.69,212.65,3.48823648]
[1756910705515,0.06,212.69,212.66,3.48823648]
[1756910705810,0.5,212.69,212.64,39.98]
[1756910706007,0.5,212.69,212.65,3.48850201]
[1756910706306,0.5,212.69,212.64,39.98]
[1756910706541,0.06,212.69,212.65,3.48842196]
[1756910706712,11.66772724,212.66,212.64,39.96]
[1756910706912,0.5,212.69,212.64,39.96]
[1756910706913,11.66772724,212.65,212.64,39.96]
[1756910707215,11.66772724,212.65,212.64,43.44892807]
[1756910708030,16.81029013,212.65,212.64,3.48892807]
[1756910708323,28.47801737,212.65,212.59,3.49068904]
[1756910708521,26.44,212.68,212.6,3.49068904]
[1756910708693,0.44,212.67,212.61,3.49068904]
[1756910708893,0.44,212.67,212.58,40.19]
[1756910709105,0.44,212.67,212.59,0.71]
[1756910709418,26.0,212.66,212.59,0.71]
[1756910709597,26.44,212.66,212.59,0.71]
[1756910709795,11.66772724,212.6,212.58,40.21]
[1756910710017,11.66772724,212.59,212.58,40.92]
[1756910710212,26.0,212.66,212.58,40.92]
[1756910710392,11.66772724,212.59,212.58,40.92]
[1756910711319,11.66772724,212.59,212.58,45.62411139]
[1756910712214,11.66772724,212.59,212.58,0.74]
[1756910712515,0.44,212.66,212.58,40.96]
[1756910712817,11.66772724,212.6,212.58,44.95404725]
[1756910713418,11.66772724,212.6,212.59,5.36389011]
[1756910713619,11.66772724,212.6,212.59,0.66]
[1756910713996,11.66772724,212.6,212.59,40.84]
[1756910715110,26.0,212.67,212.59,40.84]
[1756910715320,11.66772724,212.6,212.59,40.84]
[1756910716321,26.44,212.65,212.59,40.14]
[1756910716499,26.0,212.65,212.59,40.14]
[1756910716693,11.66772724,212.6,212.59,40.14]
[1756910717099,11.66772724,212.6,212.59,40.8]
[1756910717320,11.66772724,212.61,212.6,4.70366886]
[1756910717520,11.66772724,212.61,212.6,5.36366886]
[1756910718322,11.66772724,212.61,212.6,4.70366886]
[1756910718499,11.66772724,212.61,212.6,40.76]
[1756910719036,0.5,212.69,212.6,40.76]
[1756910719209,0.5,212.69,212.61,0.66]
[1756910719524,0.06,212.69,212.62,4.70322641]
[1756910719725,5.07359497,212.68,212.63,0.66]
[1756910719916,5.07359497,212.68,212.64,40.16]
[1756910720221,5.07359497,212.65,212.61,0.66]
[1756910720526,5.07359497,212.64,212.63,40.14]
[1756910720819,5.07359497,212.64,212.61,0.66]
[1756910720998,0.5,212.69,212.62,40.8]
[1756910721200,0.06,212.69,212.62,40.8]
[1756910721524,0.06,212.69,212.62,44.84317859]
[1756910721822,5.07359497,212.64,212.62,44.84317859]
[1756910722026,5.07359497,212.64,212.62,45.50317859]
[1756910722433,5.07359497,212.63,212.62,40.14]
[1756910722916,5.07359497,212.63,212.59,0.66]
[1756910723116,0.44,212.66,212.6,40.16]
[1756910723315,5.07359497,212.61,212.6,40.16]
[1756910724119,4.70280578,212.64,212.6,40.16]
[1756910724120,0.44,212.66,212.6,40.16]
[1756910724329,5.07359497,212.62,212.6,40.82]
[1756910724501,5.07359497,212.62,212.6,44.86366844]
[1756910724702,4.70189956,212.68,212.61,0.66]
[1756910724922,5.07359497,212.64,212.61,40.76]
[1756910725217,5.07359497,212.64,212.62,0.66]
[1756910725438,5.07359497,212.63,212.61,44.80323816]
[1756910725819,0.06,212.69,212.62,0.66]
[1756910726011,5.07359497,212.66,212.62,0.66]
[1756910726416,0.06,212.69,212.62,0.66]
[1756910726417,5.07359497,212.67,212.62,0.66]
[1756910726621,5.07359497,212.68,212.62,5.73359497]
[1756910726819,5.07359497,212.68,212.63,0.66]
[1756910727129,0.06,212.69,212.63,0.66]
[1756910727333,5.07359497,212.68,212.63,0.66]
[1756910727509,0.06,212.69,212.64,4.70278404]
[1756910727712,0.06,212.69,212.65,40.7]
[1756910727713,5.07359497,212.68,212.65,40.7]
[1756910727913,5.07359497,212.68,212.66,0.66]
[1756910728350,5.07359497,212.68,212.65,40.04]
[1756910728720,5.07359497,212.67,212.65,40.7]
[1756910729743,5.07359497,212.66,212.65,40.04]
[1756910731051,0.06,212.69,212.65,40.04]
[1756910731224,5.07359497,212.68,212.66,0.66]
[1756910731422,5.07359497,212.68,212.67,0.66]
[1756910731726,0.06,212.69,212.67,0.66]
[1756910731928,0.06,212.69,212.68,0.66]
[1756910732124,5.13359497,212.69,212.66,0.66]
[1756910732449,5.13359497,212.69,212.67,0.66]
[1756910732641,0.06,212.69,212.65,44.74250255]
[1756910732947,0.06,212.69,212.68,0.66]
[1756910733316,0.06,212.72,212.68,5.73359497]
[1756910733539,0.06,212.72,212.71,4.70123642]
[1756910733947,0.06,212.72,212.71,5.36123642]
[1756910737422,0.06,212.72,212.71,0.66]
[1756910737939,0.06,212.72,212.71,5.36123642]
[1756910738654,0.06,212.72,212.71,0.66]
[1756910739323,0.06,212.72,212.71,5.36123642]
[1756910740749,0.06,212.72,212.71,8.60577687]
[1756910741059,0.06,212.77,212.72,13.87991715]
[1756910741357,0.06,212.77,212.75,3.24454045]
[1756910741555,0.06,212.77,212.73,39.88]
[1756910741556,0.06,212.77,212.74,13.87991715]
[1756910741856,0.06,212.77,212.75,4.70035252]
[1756910742025,0.06,212.77,212.75,5.36035252]
[1756910742323,0.06,212.77,212.76,0.66]
[1756910743138,0.06,212.77,212.76,5.3601316]
[1756910743746,0.06,212.77,212.76,4.7029474]
[1756910743954,3.30454045,212.77,212.72,4.70101541]
[1756910744167,3.24454045,212.73,212.72,4.7061853]
[1756910744331,3.24454045,212.73,212.72,39.84]
[1756910745556,0.5,212.75,212.72,39.84]
[1756910745857,3.24454045,212.73,212.72,39.84]
[1756910746641,0.5,212.76,212.72,39.84]
[1756910746836,3.24454045,212.73,212.72,39.84]
[1756910747040,3.24454045,212.74,212.72,40.5]
[1756910747263,3.24454045,212.76,212.73,0.66]
[1756910747558,3.24454045,212.75,212.72,44.54101541]
[1756910747763,3.24454045,212.75,212.72,45.20101541]
[1756910747960,3.24454045,212.74,212.73,0.66]
[1756910748258,3.24454045,212.74,212.73,5.36079443]
[1756910748555,0.06,212.77,212.73,5.36079443]
[1756910748929,3.24454045,212.75,212.73,5.36079443]
[1756910749143,0.06,212.77,212.74,0.66]
[1756910749752,3.24454045,212.75,212.72,4.70098511]
[1756910749960,3.24454045,212.73,212.72,4.70098511]
[1756910750160,3.24454045,212.73,212.72,44.46098511]
[1756910750457,3.24454045,212.73,212.72,39.76]
[1756910750644,3.24454045,212.73,212.7,4.76829698]
[1756910750836,4.75994539,212.77,212.72,39.76]
[1756910750837,5.25994539,212.77,212.72,39.76]
[1756910751329,0.56,212.77,212.72,39.79]
[1756910751539,0.06,212.75,212.73,0.66]
[1756910751748,0.06,212.75,212.72,39.79]
[1756910752053,3.24454045,212.74,212.73,0.66]
[1756910752262,3.30454045,212.75,212.74,4.70057346]
[1756910752547,0.06,212.75,212.74,0.66]
[1756910753540,3.30454045,212.75,212.72,44.49097913]
[1756910753826,0.06,212.75,212.74,0.66]
[1756910754228,0.06,212.75,212.74,5.36057346]
[1756910754861,3.30454045,212.75,212.72,0.03]
[1756910755049,3.24454045,212.73,212.72,0.03]
[1756910755345,3.24454045,212.73,212.72,40.45]
[1756910755941,3.24454045,212.74,212.72,40.45]
[1756910756351,3.24454045,212.74,212.72,45.15101541]
[1756910756652,0.06,212.75,212.72,45.15101541]
[1756910756653,3.24454045,212.73,212.72,45.15101541]
[1756910757856,3.24454045,212.74,212.72,45.15101541]
[1756910758035,0.06,212.75,212.73,0.66]
[1756910758235,3.24454045,212.74,212.73,0.66]
[1756910759157,29.74454045,212.74,212.73,39.76]
[1756910759960,34.44511391,212.74,212.73,39.76]
[1756910760348,34.44511391,212.74,212.72,0.03]
[1756910760547,3.74454045,212.73,212.69,0.03]
[1756910760859,3.74454045,212.73,212.69,18.91]
[1756910760860,26.0,212.73,212.69,18.91]
[1756910761042,3.24454045,212.7,212.69,18.91]
[1756910761755,3.24454045,212.7,212.69,0.03]
[1756910762144,8.4459979,212.7,212.69,0.03]
[1756910762758,8.4459979,212.7,212.58,0.03]
[1756910762759,26.0,212.64,212.58,0.03]
[1756910762968,3.24454045,212.59,212.58,0.03]
[1756910763152,0.5,212.65,212.58,0.03]
[1756910763350,3.24454045,212.59,212.58,0.03]
[1756910763650,26.0,212.67,212.58,0.69]
[1756910763966,3.24454045,212.62,212.58,5.39402452]
[1756910764155,4.70213094,212.67,212.59,0.66]
[1756910764461,3.24454045,212.64,212.59,0.66]
[1756910764654,0.5,212.69,212.6,0.66]
[1756910764859,3.24454045,212.62,212.6,0.66]
[1756910765056,3.24454045,212.61,212.59,39.76]
[1756910765369,3.24454045,212.6,212.59,40.42]
[1756910765784,3.24454045,212.6,212.59,39.76]
[1756910765987,3.24454045,212.6,212.58,0.03]
[1756910766277,3.74454045,212.59,212.58,0.03]
[1756910766451,29.74454045,212.59,212.58,0.03]
[1756910766850,29.24454045,212.59,212.58,0.03]
[1756910767047,3.24454045,212.59,212.58,0.03]
[1756910767281,26.0,212.64,212.58,0.69]
[1756910767573,3.24454045,212.6,212.58,40.47]
[1756910767880,0.5,212.67,212.58,44.51397076]
[1756910768088,5.20213599,212.67,212.58,44.51397076]
[1756910768374,3.24454045,212.6,212.58,44.51397076]
[1756910768576,3.24454045,212.6,212.58,44.51408079]
[1756910768794,3.24454045,212.59,212.58,0.03]
[1756910769347,39.4781618,212.64,212.58,0.03]
[1756910769648,3.24454045,212.62,212.58,5.39396898]
[1756910769852,5.20190054,212.68,212.59,40.44]
[1756910770051,5.20190054,212.68,212.59,44.48389011]
[1756910770270,4.70149574,212.7,212.6,0.66]
[1756910770479,3.24454045,212.64,212.6,0.66]
[1756910770657,0.5,212.71,212.6,0.66]
[1756910770855,3.24454045,212.62,212.61,39.84]
[1756910771056,26.0,212.68,212.61,39.84]
[1756910771255,0.06,212.67,212.61,40.5]
[1756910771457,3.24454045,212.62,212.61,40.5]
[1756910771859,3.24454045,212.62,212.61,39.84]
[1756910772189,0.5,212.64,212.58,4.73408121]
[1756910772369,3.24454045,212.59,212.58,0.03]
[1756910772883,3.74454045,212.59,212.58,0.03]
[1756910773264,3.74454045,212.59,212.55,0.03]
[1756910773469,3.24454045,212.56,212.55,0.03]
[1756910773857,34.44909445,212.56,212.55,0.03]
[1756910774388,26.0,212.54,212.49,0.03]
[1756910774689,3.24454045,212.51,212.49,0.03]
[1756910774878,26.0,212.5,212.49,0.03]
[1756910775180,29.74454045,212.5,212.49,0.03]
[1756910775359,26.0,212.49,212.43,0.1]
[1756910775566,7.91166303,212.47,212.43,0.1]
[1756910775861,12.61820983,212.47,212.43,0.1]
[1756910776058,13.11820983,212.47,212.43,0.1]
[1756910776287,26.0,212.44,212.43,0.1]
[1756910776457,33.91166303,212.44,212.43,0.1]
[1756910777070,7.91166303,212.44,212.43,0.1]
[1756910777470,26.0,212.48,212.43,0.1]
[1756910777668,26.0,212.49,212.44,0.66]
[1756910777962,7.91166303,212.45,212.44,0.66]
[1756910778158,7.91166303,212.45,212.43,0.1]
[1756910778472,7.91166303,212.44,212.43,0.76]
[1756910779270,26.0,212.49,212.43,0.1]
[1756910779470,26.0,212.49,212.43,0.76]
[1756910779673,26.0,212.49,212.43,5.46742991]
[1756910779877,7.91166303,212.46,212.44,0.66]
[1756910780072,7.91166303,212.46,212.45,0.66]
[1756910780472,7.91166303,212.46,212.43,0.1]
[1756910780674,7.91166303,212.44,212.43,0.1]
[1756910781385,7.91166303,212.44,212.43,0.76]
[1756910781576,7.91166303,212.44,212.43,0.1]
[1756910782782,7.91166303,212.44,212.43,0.76]
[1756910782987,7.91166303,212.44,212.43,0.1]
[1756910783169,26.0,212.48,212.43,0.1]
[1756910783376,7.91166303,212.44,212.43,0.76]
[1756910784000,7.91166303,212.44,212.43,0.1]
[1756910784580,39.08887447,212.44,212.43,0.1]
[1756910784900,26.0,212.41,212.38,0.03]
[1756910785098,15.82332606,212.39,212.38,0.03]
[1756910785590,16.29332606,212.39,212.38,0.03]
[1756910786208,26.0,212.37,212.36,0.1]
[1756910786405,33.91166303,212.37,212.32,0.03]
[1756910786598,0.47,212.36,212.32,0.03]
[1756910786903,7.91166303,212.33,212.32,0.03]
[1756910787076,33.91166303,212.38,212.32,0.03]
[1756910787392,7.91166303,212.33,212.32,0.03]
[1756910787900,7.91166303,212.33,212.32,0.69]
[1756910788299,26.0,212.35,212.32,0.03]
[1756910788596,7.91166303,212.33,212.32,0.03]
[1756910789209,26.0,212.34,212.32,0.03]
[1756910789500,7.91166303,212.33,212.32,0.03]
[1756910790306,7.91166303,212.33,212.32,0.69]
[1756910791278,51.56812846,212.44,212.32,0.69]
[1756910791490,0.47,212.46,212.32,0.69]
[1756910791779,7.91166303,212.4,212.34,0.28432314]
[1756910791987,4.78103297,212.48,212.32,0.69]
[1756910791988,7.91166303,212.37,212.35,0.66]
[1756910792185,7.91166303,212.37,212.36,0.66]
[1756910792406,7.91166303,212.38,212.36,5.36876873]
[1756910792581,7.91166303,212.38,212.37,0.66]
[1756910792891,7.91166303,212.38,212.35,39.82]
[1756910793082,26.0,212.44,212.35,39.82]
[1756910793284,26.0,212.44,212.36,0.66]
[1756910793493,7.91166303,212.37,212.36,0.66]
[1756910793899,7.91166303,212.37,212.32,13.90991715]
[1756910793900,7.91166303,212.37,212.34,0.66]
[1756910794197,7.91166303,212.35,212.32,0.03]
[1756910794375,7.91166303,212.33,212.32,0.03]
[1756910794777,7.91166303,212.33,212.32,0.69]
[1756910795013,5.17833289,212.39,212.32,0.69]
[1756910795014,26.0,212.39,212.32,0.69]
[1756910795294,7.91166303,212.35,212.32,0.69]
[1756910795500,7.91166303,212.35,212.33,0.66]
[1756910795675,7.91166303,212.35,212.32,0.03]
[1756910795676,26.47,212.42,212.32,0.03]
[1756910795877,7.91166303,212.38,212.32,13.90991715]
[1756910796296,7.91166303,212.38,212.34,4.70942827]
[1756910796494,7.91166303,212.38,212.35,0.66]
[1756910796702,7.91166303,212.39,212.36,0.66]
[1756910797000,0.47,212.46,212.37,40.52]
[1756910797181,26.0,212.45,212.38,0.66]
[1756910797381,7.91166303,212.4,212.38,0.66]
[1756910797802,7.91166303,212.4,212.39,0.66]
[1756910798108,26.0,212.45,212.39,0.66]
[1756910798109,7.91166303,212.41,212.39,0.66]
[1756910798287,7.91166303,212.4,212.39,0.66]
[1756910798481,7.91166303,212.41,212.39,0.66]
[1756910798682,7.91166303,212.4,212.38,4.70854129]
[1756910799106,26.0,212.47,212.38,4.70854129]
[1756910799411,7.91166303,212.39,212.38,39.84]
[1756910799610,11.69607497,212.39,212.38,39.84]
[1756910800431,11.69607497,212.39,212.33,4.70963083]
[1756910800601,11.69607497,212.4,212.35,39.82]
[1756910800809,11.69607497,212.4,212.36,0.66]
[1756910801002,11.69607497,212.41,212.37,0.66]
[1756910801312,26.0,212.44,212.38,0.66]
[1756910801515,11.69607497,212.4,212.38,0.66]
[1756910801817,26.0,212.44,212.37,40.02]
[1756910801818,11.69607497,212.39,212.37,40.02]
[1756910801996,11.69607497,212.38,212.34,40.0]
[1756910802191,26.0,212.44,212.32,0.03]
[1756910802192,11.69607497,212.35,212.32,0.03]
[1756910802419,11.69607497,212.33,212.32,0.03]
[1756910804613,40.34592519,212.33,212.29,0.03]
[1756910804800,37.69607497,212.3,212.27,0.1]
[1756910805004,25.29166898,212.28,212.27,0.1]
[1756910805316,25.29166898,212.28,212.27,0.06]
[1756910805521,12.06607497,212.28,212.27,0.06]
[1756910805689,26.0,212.28,212.27,0.06]
[1756910805895,37.69607497,212.28,212.27,0.06]
[1756910806300,0.37,212.34,212.27,0.06]
[1756910806596,11.69607497,212.28,212.27,0.06]
[1756910807504,26.37,212.34,212.27,0.73]
[1756910807703,11.69607497,212.29,212.27,0.73]
[1756910808017,11.69607497,212.28,212.27,0.06]
[1756910808318,12.06607497,212.28,212.27,0.06]
[1756910808508,11.69607497,212.28,212.27,0.06]
[1756910808713,12.06607497,212.28,212.27,0.06]
[1756910809307,11.69607497,212.28,212.27,0.06]
[1756910809510,26.0,212.28,212.27,0.06]
[1756910809705,37.69607497,212.28,212.27,0.06]
[1756910810305,30.71053747,212.29,212.27,0.06]
[1756910810508,11.69607497,212.28,212.27,0.06]
[1756910810711,11.75607497,212.28,212.27,0.06]
[1756910811519,16.83683434,212.28,212.27,0.06]
[1756910811723,11.75607497,212.28,212.27,0.06]
[1756910812304,11.75607497,212.28,212.27,0.73]
[1756910812627,0.06,212.28,212.27,0.73]
[1756910812802,11.75607497,212.28,212.27,0.73]
[1756910813004,11.75607497,212.28,212.27,0.06]
[1756910813207,0.06,212.28,212.27,0.06]
[1756910813433,0.06,212.28,212.27,0.73]
[1756910813809,0.06,212.28,212.27,5.44098129]
[1756910814532,0.06,212.28,212.27,0.73]
[1756910814709,0.06,212.28,212.27,5.44098129]
[1756910815509,0.06,212.28,212.27,17.13705626]
[1756910816402,0.06,212.31,212.27,42.79442665]
[1756910816602,0.06,212.31,212.3,25.57599212]
[1756910817102,0.06,212.31,212.3,14.54991715]
[1756910817306,0.06,212.31,212.3,26.24599212]
[1756910817600,0.06,212.31,212.3,30.95630771]
[1756910818033,1e-08,212.31,212.3,30.95630771]
[1756910818219,1e-08,212.31,212.3,19.26023274]
[1756910818529,1e-08,212.31,212.3,14.54991715]
[1756910818719,1e-08,212.31,212.3,54.46991715]
[1756910818904,1e-08,212.31,212.3,70.87630771]
[1756910820227,1e-08,212.31,212.3,59.18023274]
[1756910820427,1e-08,212.31,212.3,70.87630771]
[1756910820804,1e-08,212.31,212.3,59.18023274]
[1756910821010,1e-08,212.31,212.3,70.87630771]
[1756910822008,1e-08,212.31,212.3,59.18023274]
[1756910822200,1e-08,212.31,212.3,70.87630771]
[1756910822625,1e-08,212.33,212.3,59.18023274]
[1756910822827,1e-08,212.33,212.32,25.57599212]
[1756910823213,1e-08,212.33,212.32,26.24599212]
[1756910823834,1e-08,212.33,212.32,19.25978904]
[1756910824033,1e-08,212.33,212.32,30.95586401]
[1756910824331,1e-08,212.33,212.32,19.25978904]
[1756910824551,1e-08,212.33,212.32,70.51154087]
[1756910824711,1e-08,212.33,212.32,70.79586401]
[1756910825727,1e-08,212.33,212.32,19.82497366]
[1756910825931,1e-08,212.33,212.32,96.79586401]
[1756910826516,1e-08,212.33,212.32,39.84]
[1756910826725,1e-08,212.33,212.27,0.73]
[1756910827030,11.69607497,212.32,212.29,0.67]
[1756910827231,11.69607498,212.33,212.29,0.67]
[1756910827405,1e-08,212.33,212.29,0.67]
[1756910827831,1e-08,212.33,212.31,4.71009373]
[1756910828033,1e-08,212.33,212.32,39.84]
[1756910828607,11.69607498,212.33,212.32,39.84]
[1756910829030,1e-08,212.33,212.32,39.84]
[1756910829339,1e-08,212.33,212.32,40.51]
[1756910829529,1e-08,212.33,212.3,4.74029213]
[1756910829706,1e-08,212.33,212.32,39.84]
[1756910829910,1e-08,212.33,212.32,56.24594686]
[1756910830113,1e-08,212.33,212.32,56.91594686]
[1756910830741,1e-08,212.33,212.32,70.79586401]
[1756910832959,0.06,212.38,212.36,39.59559401]
[1756910833112,0.06,212.38,212.37,53.69991715]
[1756910833438,0.06,212.38,212.37,39.82]
[1756910833731,0.06,212.38,212.37,52.22607497]
[1756910833920,0.06,212.38,212.37,70.81475512]
[1756910834938,0.06,212.38,212.37,59.11868015]
[1756910835142,0.06,212.38,212.37,70.81475512]
[1756910836547,0.43,212.49,212.38,13.87991715]
[1756910836716,11.69607497,212.46,212.39,52.22607497]
[1756910837043,0.37,212.48,212.4,0.71]
[1756910837221,11.75607497,212.49,212.43,11.69607497]
[1756910837540,0.06,212.49,212.45,4.70698987]
[1756910837727,0.06,212.49,212.46,39.82]
[1756910838351,0.06,212.49,212.47,12.40607497]
[1756910838655,0.06,212.49,212.48,39.82]
[1756910839320,0.06,212.49,212.48,44.5263253]
[1756910840119,0.06,212.49,212.48,70.81231742]
[1756910840315,0.2,212.5,212.49,11.69607497]
[1756910840527,0.2,212.5,212.49,0.71]
[1756910840720,0.2,212.5,212.49,26.28599212]
[1756910840914,0.2,212.5,212.49,13.87991715]
[1756910841110,0.2,212.5,212.49,39.82]
[1756910841718,0.2,212.5,212.47,79.7]
[1756910841923,11.89607497,212.5,212.47,79.7]
[1756910842138,0.2,212.5,212.48,39.82]
[1756910843543,0.2,212.5,212.49,4.70610381]
[1756910844142,0.2,212.5,212.48,44.52628278]
[1756910844340,11.69607497,212.49,212.47,4.7473156]
[1756910844524,0.57,212.5,212.48,39.8]
[1756910844727,0.37,212.49,212.43,84.40742534]
[1756910844930,0.37,212.49,212.44,39.8]
[1756910845139,0.2,212.5,212.44,39.8]
[1756910845447,0.37,212.48,212.44,44.50712665]
[1756910845642,11.69607497,212.47,212.44,44.50712665]
[1756910845842,0.2,212.5,212.45,0.71]
[1756910846052,11.89607497,212.5,212.46,40.51]
[1756910846246,0.2,212.5,212.46,40.51]
[1756910847234,11.69607497,212.49,212.46,39.8]
[1756910847461,11.69607497,212.47,212.44,4.70712665]
[1756910847634,11.69607497,212.46,212.45,39.8]
[1756910847837,11.69607497,212.46,212.43,4.72042774]
[1756910848057,11.69607497,212.44,212.38,0.71]
[1756910848362,0.37,212.46,212.39,39.8]
[1756910848538,0.37,212.48,212.39,39.8]
[1756910848735,0.2,212.5,212.41,13.59559401]
[1756910848935,11.69607497,212.46,212.42,39.8]